[Event "Titled Tuesday Blitz April 18 Early 2023"]
[White "Krsnik Cohar, Ivan Vihor"]
[Black "Ansh M Shah"]
[WhiteFideId "14520044"]
[BlackFideId "25033379"]
[WhiteElo "2414"]
[BlackElo "2084"]
[Result "1-0"]
[Round "04"]
[TimeControl "180+2"]
[Date "2023.04.18"]
[WhiteClock "0:01:59"]
[BlackClock "0:01:39"]

1. e4 {[%clk 0:03:00]}  c6 {[%clk 0:02:58]} 2. Nf3 {[%clk 0:03:01]}  d5 {[%clk 0:02:59]} 3. exd5 {[%clk 0:03:02]}  cxd5 {[%clk 0:02:59]} 4. d4 {[%clk 0:03:03]}  Nc6 {[%clk 0:03:00]} 5. c4 {[%clk 0:03:03]}  Nf6 {[%clk 0:02:59]} 6. Nc3 {[%clk 0:03:04]}  Bg4 {[%clk 0:02:58]} 7. cxd5 {[%clk 0:03:05]}  Nxd5 {[%clk 0:02:58]} 8. Bb5 {[%clk 0:03:05]}  Rc8 {[%clk 0:02:56]} 9. h3 {[%clk 0:03:06]}  Bh5 {[%clk 0:02:56]} 10. g4 {[%clk 0:03:06]}  Bg6 {[%clk 0:02:57]} 11. Ne5 {[%clk 0:03:07]}  e6 {[%clk 0:02:57]} 12. Qa4 {[%clk 0:03:02]}  Be7 {[%clk 0:02:57]} 13. Nxc6 {[%clk 0:02:57]}  bxc6 {[%clk 0:02:53]} 14. Bxc6+ {[%clk 0:02:57]}  Kf8 {[%clk 0:02:52]} 15. Nxd5 {[%clk 0:02:48]}  exd5 {[%clk 0:02:43]} 16. Be3 {[%clk 0:02:35]}  Qb6 {[%clk 0:02:21]} 17. Rc1 {[%clk 0:02:34]}  Qxb2 {[%clk 0:02:13]} 18. O-O {[%clk 0:02:34]}  Be4 {[%clk 0:02:05]} 19. Bxd5 {[%clk 0:02:17]}  Rxc1 {[%clk 0:01:49]} 20. Rxc1 {[%clk 0:02:00]}  Qxc1+ {[%clk 0:01:39]} 21. Bxc1 {[%clk 0:02:01]}  Bxd5 {[%clk 0:01:39]} 22. Qb5 {[%clk 0:01:59]} 1-0


[Site "https://www.chess.com"]

[Event "Titled Tuesday Blitz April 18 Early 2023"]
[White "Sousa, Andre Ventura"]
[Black "Kula, Robert"]
[WhiteFideId "1917617"]
[BlackFideId "1101218"]
[WhiteElo "2348"]
[BlackElo "2180"]
[Result "1-0"]
[Round "04"]
[TimeControl "180+2"]
[Date "2023.04.18"]
[WhiteClock "0:00:18"]
[BlackClock "0:00:02"]

1. e4 {[%clk 0:03:00]}  e5 {[%clk 0:02:58]} 2. Nf3 {[%clk 0:03:01]}  Nc6 {[%clk 0:02:58]} 3. Bc4 {[%clk 0:03:00]}  Be7 {[%clk 0:02:56]} 4. d3 {[%clk 0:02:51]}  Nf6 {[%clk 0:02:55]} 5. c3 {[%clk 0:02:48]}  O-O {[%clk 0:02:54]} 6. Nbd2 {[%clk 0:02:45]}  d5 {[%clk 0:02:54]} 7. exd5 {[%clk 0:02:46]}  Nxd5 {[%clk 0:02:54]} 8. Ne4 {[%clk 0:02:37]}  h6 {[%clk 0:02:47]} 9. Be3 {[%clk 0:02:25]}  Be6 {[%clk 0:02:41]} 10. Bc5 {[%clk 0:02:20]}  b6 {[%clk 0:02:34]} 11. Bxe7 {[%clk 0:02:19]}  Qxe7 {[%clk 0:02:35]} 12. O-O {[%clk 0:02:18]}  f5 {[%clk 0:02:33]} 13. Ng3 {[%clk 0:02:12]}  Nf4 {[%clk 0:02:32]} 14. Bxe6+ {[%clk 0:02:10]}  Qxe6 {[%clk 0:02:32]} 15. Re1 {[%clk 0:01:42]}  Rad8 {[%clk 0:02:30]} 16. d4 {[%clk 0:01:37]}  e4 {[%clk 0:02:30]} 17. Nh4 {[%clk 0:01:33]}  g5 {[%clk 0:02:25]} 18. Nhxf5 {[%clk 0:01:33]}  Rxf5 {[%clk 0:02:25]} 19. Rxe4 {[%clk 0:01:27]}  Qf7 {[%clk 0:02:19]} 20. Nxf5 {[%clk 0:01:23]}  Qxf5 {[%clk 0:02:19]} 21. Qb3+ {[%clk 0:01:24]}  Kf8 {[%clk 0:02:09]} 22. Rae1 {[%clk 0:01:24]}  a5 {[%clk 0:01:22]} 23. Qd1 {[%clk 0:01:23]}  Ng6 {[%clk 0:01:17]} 24. Qh5 {[%clk 0:01:16]}  Kg7 {[%clk 0:01:16]} 25. Re6 {[%clk 0:01:09]}  Rf8 {[%clk 0:01:13]} 26. Kh1 {[%clk 0:00:45]}  Nd8 {[%clk 0:01:07]} 27. R6e2 {[%clk 0:00:34]}  Nf7 {[%clk 0:01:07]} 28. g3 {[%clk 0:00:33]}  Nd6 {[%clk 0:00:59]} 29. Kg1 {[%clk 0:00:31]}  Qf7 {[%clk 0:00:51]} 30. b3 {[%clk 0:00:29]}  Nf5 {[%clk 0:00:51]} 31. Qf3 {[%clk 0:00:27]}  Nd6 {[%clk 0:00:45]} 32. Qc6 {[%clk 0:00:27]}  h5 {[%clk 0:00:42]} 33. c4 {[%clk 0:00:27]}  h4 {[%clk 0:00:41]} 34. c5 {[%clk 0:00:27]}  hxg3 {[%clk 0:00:41]} 35. hxg3 {[%clk 0:00:27]}  bxc5 {[%clk 0:00:41]} 36. dxc5 {[%clk 0:00:28]}  Nf5 {[%clk 0:00:41]} 37. Rd1 {[%clk 0:00:25]}  Nge7 {[%clk 0:00:37]} 38. Qxc7 {[%clk 0:00:24]}  g4 {[%clk 0:00:31]} 39. Rd7 {[%clk 0:00:23]}  Re8 {[%clk 0:00:31]} 40. Qe5+ {[%clk 0:00:23]}  Qf6 {[%clk 0:00:28]} 41. c6 {[%clk 0:00:22]}  Qxe5 {[%clk 0:00:27]} 42. Rxe5 {[%clk 0:00:23]}  Kf6 {[%clk 0:00:27]} 43. Rc5 {[%clk 0:00:21]}  Rc8 {[%clk 0:00:27]} 44. c7 {[%clk 0:00:20]}  Ke6 {[%clk 0:00:14]} 45. Rd1 {[%clk 0:00:20]}  Rh8 {[%clk 0:00:09]} 46. Rxa5 {[%clk 0:00:19]}  Nd6 {[%clk 0:00:07]} 47. Re1+ {[%clk 0:00:19]}  Kd7 {[%clk 0:00:06]} 48. Ra4 {[%clk 0:00:18]}  Nec8 {[%clk 0:00:06]} 49. Rxg4 {[%clk 0:00:18]}  Kxc7 {[%clk 0:00:06]} 50. Rc1+ {[%clk 0:00:19]}  Kd7 {[%clk 0:00:05]} 51. Rg7+ {[%clk 0:00:20]}  Ke6 {[%clk 0:00:05]} 52. Re1+ {[%clk 0:00:20]}  Kf6 {[%clk 0:00:06]} 53. Rc7 {[%clk 0:00:21]}  Rd8 {[%clk 0:00:05]} 54. Rd1 {[%clk 0:00:21]}  Ke6 {[%clk 0:00:04]} 55. a4 {[%clk 0:00:21]}  Rg8 {[%clk 0:00:04]} 56. Rc6 {[%clk 0:00:21]}  Kd7 {[%clk 0:00:04]} 57. Rc3 {[%clk 0:00:19]}  Ne7 {[%clk 0:00:03]} 58. Rcd3 {[%clk 0:00:20]}  Nf5 {[%clk 0:00:03]} 59. b4 {[%clk 0:00:20]}  Ke6 {[%clk 0:00:02]} 60. b5 {[%clk 0:00:20]}  Ne4 {[%clk 0:00:02]} 61. Re1 {[%clk 0:00:20]}  Ke5 {[%clk 0:00:02]} 62. f3 {[%clk 0:00:18]} 1-0


[Site "https://www.chess.com"]

[Event "Titled Tuesday Blitz April 18 Early 2023"]
[White "Hoffmann, Asa"]
[Black "Novik, Maxim"]
[WhiteFideId "2001470"]
[BlackFideId "4102924"]
[WhiteElo "2117"]
[BlackElo "2287"]
[Result "0-1"]
[Round "04"]
[TimeControl "180+2"]
[Date "2023.04.18"]
[WhiteClock "0:01:05"]
[BlackClock "0:02:10"]

1. d4 {[%clk 0:02:56]}  Nf6 {[%clk 0:02:59]} 2. Bg5 {[%clk 0:02:52]}  c5 {[%clk 0:02:59]} 3. d5 {[%clk 0:02:51]}  Qb6 {[%clk 0:02:59]} 4. Nc3 {[%clk 0:02:50]}  Qxb2 {[%clk 0:02:59]} 5. Bd2 {[%clk 0:02:49]}  Qb6 {[%clk 0:02:59]} 6. e4 {[%clk 0:02:49]}  d6 {[%clk 0:02:59]} 7. f4 {[%clk 0:02:49]}  e5 {[%clk 0:02:59]} 8. Nf3 {[%clk 0:02:48]}  Bg4 {[%clk 0:02:55]} 9. Rb1 {[%clk 0:02:46]}  Qc7 {[%clk 0:02:53]} 10. fxe5 {[%clk 0:02:40]}  dxe5 {[%clk 0:02:53]} 11. h3 {[%clk 0:02:34]}  Bh5 {[%clk 0:02:47]} 12. Bb5+ {[%clk 0:02:15]}  Nbd7 {[%clk 0:02:47]} 13. O-O {[%clk 0:02:15]}  c4 {[%clk 0:02:43]} 14. Qe1 {[%clk 0:02:08]}  Bc5+ {[%clk 0:02:42]} 15. Kh1 {[%clk 0:02:08]}  O-O {[%clk 0:02:42]} 16. Qh4 {[%clk 0:02:07]}  Bg6 {[%clk 0:02:40]} 17. Bxc4 {[%clk 0:02:00]}  Bd4 {[%clk 0:02:36]} 18. Rb4 {[%clk 0:01:35]}  a5 {[%clk 0:02:17]} 19. Nb5 {[%clk 0:01:34]}  Qc5 {[%clk 0:02:16]} 20. Ra4 {[%clk 0:01:26]}  Nb6 {[%clk 0:02:14]} 21. Bb3 {[%clk 0:01:11]}  Qxb5 {[%clk 0:02:12]} 22. Rxd4 {[%clk 0:01:08]}  Qxf1+ {[%clk 0:02:11]} 23. Kh2 {[%clk 0:01:07]}  exd4 {[%clk 0:02:11]} 24. e5 {[%clk 0:01:05]}  Nfxd5 {[%clk 0:02:10]} 0-1


[Site "https://www.chess.com"]

[Event "Titled Tuesday Blitz April 18 Early 2023"]
[White "Cnejev, Vladimir-Alexandru"]
[Black "Buscar, Michael"]
[WhiteFideId "1260898"]
[BlackFideId "2603616"]
[WhiteElo "2132"]
[BlackElo "2010"]
[Result "1-0"]
[Round "04"]
[TimeControl "180+2"]
[Date "2023.04.18"]
[WhiteClock "0:00:13"]
[BlackClock "0:00:05"]

1. Nf3 {[%clk 0:03:00]}  d5 {[%clk 0:02:53]} 2. b3 {[%clk 0:03:01]}  Nf6 {[%clk 0:02:53]} 3. Bb2 {[%clk 0:03:02]}  e6 {[%clk 0:02:53]} 4. e3 {[%clk 0:03:02]}  c6 {[%clk 0:02:53]} 5. Be2 {[%clk 0:02:59]}  Be7 {[%clk 0:02:54]} 6. g4 {[%clk 0:02:58]}  h6 {[%clk 0:02:52]} 7. Rg1 {[%clk 0:02:58]}  Nbd7 {[%clk 0:02:51]} 8. h4 {[%clk 0:02:57]}  Nf8 {[%clk 0:02:47]} 9. g5 {[%clk 0:02:36]}  hxg5 {[%clk 0:02:47]} 10. hxg5 {[%clk 0:02:36]}  Nh5 {[%clk 0:02:47]} 11. Ne5 {[%clk 0:02:22]}  g6 {[%clk 0:02:20]} 12. Nxf7 {[%clk 0:02:07]}  Kxf7 {[%clk 0:02:18]} 13. Bxh8 {[%clk 0:02:07]}  Nh7 {[%clk 0:02:15]} 14. Bb2 {[%clk 0:01:46]}  Ng7 {[%clk 0:01:52]} 15. f4 {[%clk 0:01:33]}  Nf5 {[%clk 0:01:36]} 16. Bg4 {[%clk 0:01:30]}  Bf8 {[%clk 0:01:34]} 17. Qe2 {[%clk 0:00:55]}  Bg7 {[%clk 0:01:32]} 18. Bxg7 {[%clk 0:00:54]}  Kxg7 {[%clk 0:01:31]} 19. d3 {[%clk 0:00:54]}  Nf8 {[%clk 0:01:26]} 20. Nd2 {[%clk 0:00:52]}  a5 {[%clk 0:01:21]} 21. a4 {[%clk 0:00:49]}  Qe7 {[%clk 0:01:16]} 22. Nf3 {[%clk 0:00:46]}  Qb4+ {[%clk 0:01:09]} 23. Kf2 {[%clk 0:00:40]}  Qc5 {[%clk 0:01:04]} 24. Ne5 {[%clk 0:00:26]}  Nd7 {[%clk 0:00:53]} 25. d4 {[%clk 0:00:19]}  Qc3 {[%clk 0:00:44]} 26. Nxd7 {[%clk 0:00:11]}  Bxd7 {[%clk 0:00:44]} 27. Bxf5 {[%clk 0:00:11]}  exf5 {[%clk 0:00:43]} 28. Rad1 {[%clk 0:00:11]}  Rh8 {[%clk 0:00:28]} 29. Rh1 {[%clk 0:00:11]}  Rxh1 {[%clk 0:00:23]} 30. Rxh1 {[%clk 0:00:12]}  c5 {[%clk 0:00:20]} 31. dxc5 {[%clk 0:00:12]}  Qxc5 {[%clk 0:00:18]} 32. Qd3 {[%clk 0:00:12]}  Bc6 {[%clk 0:00:16]} 33. Qd4+ {[%clk 0:00:12]}  Qxd4 {[%clk 0:00:15]} 34. exd4 {[%clk 0:00:13]}  b5 {[%clk 0:00:08]} 35. axb5 {[%clk 0:00:12]}  Bxb5 {[%clk 0:00:08]} 36. Ra1 {[%clk 0:00:13]}  Bc6 {[%clk 0:00:05]} 37. Rxa5 {[%clk 0:00:13]} 1-0


[Site "https://www.chess.com"]

[Event "Titled Tuesday Blitz April 18 Early 2023"]
[White "Fiedorek, Michal"]
[Black "Pavlidou, Ekaterini"]
[WhiteFideId "1199528"]
[BlackFideId "4213262"]
[WhiteElo "2135"]
[BlackElo "2126"]
[Result "1-0"]
[Round "04"]
[TimeControl "180+2"]
[Date "2023.04.18"]
[WhiteClock "0:00:09"]
[BlackClock "0:00:44"]

1. e4 {[%clk 0:02:54]}  c5 {[%clk 0:02:59]} 2. Nf3 {[%clk 0:02:50]}  e6 {[%clk 0:02:59]} 3. d4 {[%clk 0:02:50]}  cxd4 {[%clk 0:02:59]} 4. Nxd4 {[%clk 0:02:51]}  Nf6 {[%clk 0:02:59]} 5. Nc3 {[%clk 0:02:50]}  Nc6 {[%clk 0:03:00]} 6. Nxc6 {[%clk 0:02:47]}  bxc6 {[%clk 0:03:00]} 7. e5 {[%clk 0:02:47]}  Nd5 {[%clk 0:03:00]} 8. Ne4 {[%clk 0:02:48]}  Qc7 {[%clk 0:02:57]} 9. f4 {[%clk 0:02:47]}  Qb6 {[%clk 0:02:53]} 10. a3 {[%clk 0:02:41]}  f5 {[%clk 0:02:51]} 11. exf6 {[%clk 0:02:33]}  Nxf6 {[%clk 0:02:50]} 12. Nxf6+ {[%clk 0:02:32]}  gxf6 {[%clk 0:02:50]} 13. Qh5+ {[%clk 0:02:32]}  Kd8 {[%clk 0:02:50]} 14. Bd3 {[%clk 0:02:28]}  Bc5 {[%clk 0:02:48]} 15. Rf1 {[%clk 0:02:14]}  a5 {[%clk 0:02:47]} 16. Qf7 {[%clk 0:02:04]}  Rf8 {[%clk 0:02:46]} 17. Qg7 {[%clk 0:02:04]}  Kc7 {[%clk 0:02:41]} 18. Be3 {[%clk 0:01:48]}  Bxe3 {[%clk 0:02:34]} 19. Qxf8 {[%clk 0:01:47]}  Qxb2 {[%clk 0:02:29]} 20. Ke2 {[%clk 0:01:40]}  Bb7 {[%clk 0:01:56]} 21. Qe7 {[%clk 0:01:28]}  Bb6 {[%clk 0:01:52]} 22. Rad1 {[%clk 0:01:13]}  Qd4 {[%clk 0:01:50]} 23. Rf3 {[%clk 0:01:11]}  c5 {[%clk 0:01:44]} 24. Bb5 {[%clk 0:00:54]}  Qe4+ {[%clk 0:01:42]} 25. Kf1 {[%clk 0:00:48]}  Rd8 {[%clk 0:01:31]} 26. Rxd7+ {[%clk 0:00:43]}  Rxd7 {[%clk 0:01:31]} 27. Qxd7+ {[%clk 0:00:44]}  Kb8 {[%clk 0:01:32]} 28. Qd3 {[%clk 0:00:36]}  f5 {[%clk 0:01:24]} 29. Qxe4 {[%clk 0:00:32]}  fxe4 {[%clk 0:01:23]} 30. Rh3 {[%clk 0:00:31]}  e3 {[%clk 0:01:12]} 31. Rxh7 {[%clk 0:00:28]}  Be4 {[%clk 0:01:10]} 32. Rh8+ {[%clk 0:00:20]}  Kc7 {[%clk 0:01:09]} 33. Bd3 {[%clk 0:00:20]}  Bd5 {[%clk 0:01:10]} 34. Rh7+ {[%clk 0:00:21]}  Kd6 {[%clk 0:01:09]} 35. h4 {[%clk 0:00:17]}  c4 {[%clk 0:01:08]} 36. Be2 {[%clk 0:00:17]}  Be4 {[%clk 0:01:07]} 37. Rb7 {[%clk 0:00:17]}  Kc6 {[%clk 0:01:07]} 38. Re7 {[%clk 0:00:16]}  Kd6 {[%clk 0:01:03]} 39. Re8 {[%clk 0:00:13]}  Bxc2 {[%clk 0:01:02]} 40. Bxc4 {[%clk 0:00:13]}  Ba4 {[%clk 0:01:00]} 41. Rxe6+ {[%clk 0:00:13]}  Kc5 {[%clk 0:01:00]} 42. Be2 {[%clk 0:00:11]}  Bd7 {[%clk 0:00:56]} 43. Re5+ {[%clk 0:00:11]}  Kc6 {[%clk 0:00:55]} 44. h5 {[%clk 0:00:10]}  Bd4 {[%clk 0:00:54]} 45. Rg5 {[%clk 0:00:08]}  Bb2 {[%clk 0:00:52]} 46. Bb5+ {[%clk 0:00:08]}  Kd6 {[%clk 0:00:50]} 47. Bxd7 {[%clk 0:00:08]}  Kxd7 {[%clk 0:00:50]} 48. Rxa5 {[%clk 0:00:09]}  Bc3 {[%clk 0:00:49]} 49. Rd5+ {[%clk 0:00:08]}  Ke6 {[%clk 0:00:49]} 50. Rd3 {[%clk 0:00:08]}  Bb2 {[%clk 0:00:49]} 51. Rxe3+ {[%clk 0:00:08]}  Kf5 {[%clk 0:00:49]} 52. Rf3 {[%clk 0:00:08]}  Bg7 {[%clk 0:00:46]} 53. a4 {[%clk 0:00:08]}  Bf8 {[%clk 0:00:44]} 54. a5 {[%clk 0:00:08]}  Bc5 {[%clk 0:00:44]} 55. a6 {[%clk 0:00:09]}  Ba7 {[%clk 0:00:45]} 56. h6 {[%clk 0:00:09]}  Kg6 {[%clk 0:00:44]} 57. Rh3 {[%clk 0:00:09]}  Kh7 {[%clk 0:00:45]} 58. g4 {[%clk 0:00:10]}  Bb8 {[%clk 0:00:45]} 59. f5 {[%clk 0:00:10]}  Ba7 {[%clk 0:00:45]} 60. g5 {[%clk 0:00:11]}  Bd4 {[%clk 0:00:45]} 61. g6+ {[%clk 0:00:11]}  Kg8 {[%clk 0:00:45]} 62. a7 {[%clk 0:00:09]}  Bxa7 {[%clk 0:00:44]} 63. f6 {[%clk 0:00:09]} 1-0


[Site "https://www.chess.com"]

[Event "Titled Tuesday Blitz April 18 Early 2023"]
[White "mohsengabr2002"]
[Black "Bagrationi, Alexander"]
[BlackFideId "14104954"]
[WhiteElo "2362"]
[BlackElo "2398"]
[Result "0-1"]
[Round "04"]
[TimeControl "180+2"]
[Date "2023.04.18"]
[WhiteClock "0:00:18"]
[BlackClock "0:00:49"]

1. e4 {[%clk 0:02:59]}  c5 {[%clk 0:02:45]} 2. d3 {[%clk 0:02:58]}  g6 {[%clk 0:02:44]} 3. Nd2 {[%clk 0:02:59]}  Bg7 {[%clk 0:02:45]} 4. g3 {[%clk 0:03:00]}  Nc6 {[%clk 0:02:42]} 5. Bg2 {[%clk 0:03:00]}  e6 {[%clk 0:02:43]} 6. Ngf3 {[%clk 0:03:01]}  Nge7 {[%clk 0:02:43]} 7. O-O {[%clk 0:03:01]}  O-O {[%clk 0:02:44]} 8. c3 {[%clk 0:03:01]}  b5 {[%clk 0:02:42]} 9. a4 {[%clk 0:03:00]}  b4 {[%clk 0:02:41]} 10. e5 {[%clk 0:02:55]}  f6 {[%clk 0:02:36]} 11. exf6 {[%clk 0:02:47]}  Bxf6 {[%clk 0:02:37]} 12. Ne4 {[%clk 0:02:47]}  Bg7 {[%clk 0:02:30]} 13. Bg5 {[%clk 0:02:39]}  h6 {[%clk 0:02:24]} 14. Bxe7 {[%clk 0:02:38]}  Qxe7 {[%clk 0:02:24]} 15. Rc1 {[%clk 0:02:28]}  d5 {[%clk 0:02:24]} 16. Ned2 {[%clk 0:02:25]}  bxc3 {[%clk 0:02:23]} 17. bxc3 {[%clk 0:02:25]}  Ba6 {[%clk 0:02:23]} 18. Qc2 {[%clk 0:02:24]}  Qf6 {[%clk 0:02:07]} 19. Rfe1 {[%clk 0:02:14]}  g5 {[%clk 0:01:59]} 20. Nb3 {[%clk 0:02:02]}  Bxd3 {[%clk 0:01:51]} 21. Qxd3 {[%clk 0:01:59]}  c4 {[%clk 0:01:51]} 22. Qc2 {[%clk 0:01:49]}  cxb3 {[%clk 0:01:52]} 23. Qxb3 {[%clk 0:01:48]}  g4 {[%clk 0:01:48]} 24. Nd4 {[%clk 0:01:34]}  Qxf2+ {[%clk 0:01:44]} 25. Kh1 {[%clk 0:01:34]}  Nxd4 {[%clk 0:01:45]} 26. cxd4 {[%clk 0:01:34]}  Rac8 {[%clk 0:01:30]} 27. Rcd1 {[%clk 0:01:29]}  Rc2 {[%clk 0:01:29]} 28. Rg1 {[%clk 0:01:24]}  Bxd4 {[%clk 0:01:27]} 29. Qd3 {[%clk 0:01:11]}  Bg7 {[%clk 0:01:17]} 30. Rdf1 {[%clk 0:01:04]}  Qe2 {[%clk 0:01:10]} 31. Rxf8+ {[%clk 0:00:58]}  Bxf8 {[%clk 0:01:10]} 32. Qg6+ {[%clk 0:00:57]}  Bg7 {[%clk 0:01:11]} 33. Qh5 {[%clk 0:00:32]}  Kh7 {[%clk 0:01:00]} 34. Bf1 {[%clk 0:00:20]}  Qe4+ {[%clk 0:00:52]} 35. Bg2 {[%clk 0:00:20]}  Qg6 {[%clk 0:00:51]} 36. Qh4 {[%clk 0:00:18]}  Bf6 {[%clk 0:00:49]} 0-1


[Site "https://www.chess.com"]

[Event "Titled Tuesday Blitz April 18 Early 2023"]
[White "Szente Varga, Fruzsina"]
[Black "Novikov, Evgenij"]
[WhiteFideId "712264"]
[BlackFideId "4125380"]
[WhiteElo "1994"]
[BlackElo "2242"]
[Result "0-1"]
[Round "04"]
[TimeControl "180+2"]
[Date "2023.04.18"]
[WhiteClock "0:00:01"]
[BlackClock "0:00:01"]

1. e4 {[%clk 0:03:00]}  e6 {[%clk 0:02:58]} 2. d4 {[%clk 0:03:00]}  d5 {[%clk 0:02:59]} 3. Nd2 {[%clk 0:03:01]}  c5 {[%clk 0:02:58]} 4. exd5 {[%clk 0:03:00]}  exd5 {[%clk 0:02:59]} 5. Bb5+ {[%clk 0:03:00]}  Nc6 {[%clk 0:02:58]} 6. Ne2 {[%clk 0:02:53]}  a6 {[%clk 0:02:51]} 7. Bxc6+ {[%clk 0:02:53]}  bxc6 {[%clk 0:02:52]} 8. O-O {[%clk 0:02:52]}  Nf6 {[%clk 0:02:49]} 9. Re1 {[%clk 0:02:52]}  Be7 {[%clk 0:02:44]} 10. dxc5 {[%clk 0:02:53]}  O-O {[%clk 0:02:43]} 11. Nb3 {[%clk 0:02:52]}  a5 {[%clk 0:02:42]} 12. Ned4 {[%clk 0:02:50]}  Bd7 {[%clk 0:02:22]} 13. a4 {[%clk 0:02:49]}  Ne4 {[%clk 0:02:17]} 14. f3 {[%clk 0:02:38]}  Nxc5 {[%clk 0:02:03]} 15. Kh1 {[%clk 0:02:37]}  Nxb3 {[%clk 0:01:57]} 16. Nxb3 {[%clk 0:02:38]}  Bd6 {[%clk 0:01:49]} 17. Qd4 {[%clk 0:02:24]}  Qc7 {[%clk 0:01:38]} 18. f4 {[%clk 0:02:20]}  Bf5 {[%clk 0:01:17]} 19. c3 {[%clk 0:02:00]}  Rab8 {[%clk 0:01:12]} 20. Nc5 {[%clk 0:01:41]}  Bxc5 {[%clk 0:01:11]} 21. Qxc5 {[%clk 0:01:41]}  Rfe8 {[%clk 0:01:07]} 22. Bd2 {[%clk 0:01:36]}  h6 {[%clk 0:01:03]} 23. b4 {[%clk 0:01:34]}  Rxe1+ {[%clk 0:00:49]} 24. Rxe1 {[%clk 0:01:33]}  axb4 {[%clk 0:00:49]} 25. cxb4 {[%clk 0:01:33]}  Be4 {[%clk 0:00:49]} 26. b5 {[%clk 0:01:13]}  Qd7 {[%clk 0:00:42]} 27. bxc6 {[%clk 0:00:42]}  Qg4 {[%clk 0:00:40]} 28. Rg1 {[%clk 0:00:25]}  Rb1 {[%clk 0:00:38]} 29. Qf2 {[%clk 0:00:21]}  Rxg1+ {[%clk 0:00:04]} 30. Kxg1 {[%clk 0:00:22]}  Qd1+ {[%clk 0:00:03]} 31. Qe1 {[%clk 0:00:20]}  Qg4 {[%clk 0:00:02]} 32. Qf1 {[%clk 0:00:18]}  Qc8 {[%clk 0:00:01]} 33. Qc1 {[%clk 0:00:12]}  Qg4 {[%clk 0:00:01]} 34. Qf1 {[%clk 0:00:11]}  Qc8 {[%clk 0:00:01]} 35. a5 {[%clk 0:00:04]}  Qxc6 {[%clk 0:00:01]} 36. Be3 {[%clk 0:00:05]}  Qa4 {[%clk 0:00:01]} 37. Bb6 {[%clk 0:00:04]}  d4 {[%clk 0:00:01]} 38. Qe1 {[%clk 0:00:01]}  d3 {[%clk 0:00:01]} 0-1


[Site "https://www.chess.com"]

[Event "Titled Tuesday Blitz April 18 Early 2023"]
[White "Principe, Alexander"]
[Black "Derichs, Roger"]
[WhiteFideId "3804542"]
[BlackFideId "4630076"]
[WhiteElo "2203"]
[BlackElo "2333"]
[Result "1-0"]
[Round "04"]
[TimeControl "180+2"]
[Date "2023.04.18"]
[WhiteClock "0:00:28"]
[BlackClock "0:00:08"]

1. e4 {[%clk 0:03:00]}  e6 {[%clk 0:03:00]} 2. d4 {[%clk 0:03:00]}  d5 {[%clk 0:03:00]} 3. Nc3 {[%clk 0:03:00]}  Bb4 {[%clk 0:03:00]} 4. e5 {[%clk 0:03:00]}  c5 {[%clk 0:03:00]} 5. Bd2 {[%clk 0:03:00]}  Ne7 {[%clk 0:03:00]} 6. f4 {[%clk 0:02:57]}  cxd4 {[%clk 0:02:56]} 7. Nb5 {[%clk 0:02:57]}  Bxd2+ {[%clk 0:02:55]} 8. Qxd2 {[%clk 0:02:58]}  O-O {[%clk 0:02:54]} 9. Nf3 {[%clk 0:02:58]}  Nbc6 {[%clk 0:02:52]} 10. Nbxd4 {[%clk 0:02:57]}  Bd7 {[%clk 0:02:48]} 11. c3 {[%clk 0:02:56]}  Qb6 {[%clk 0:02:47]} 12. Bd3 {[%clk 0:02:55]}  Nxd4 {[%clk 0:02:43]} 13. Nxd4 {[%clk 0:02:56]}  Nc6 {[%clk 0:02:43]} 14. Nxc6 {[%clk 0:02:38]}  bxc6 {[%clk 0:02:36]} 15. Qf2 {[%clk 0:02:38]}  Qxf2+ {[%clk 0:02:31]} 16. Kxf2 {[%clk 0:02:38]}  a5 {[%clk 0:02:28]} 17. Ke3 {[%clk 0:02:29]}  Rfb8 {[%clk 0:02:27]} 18. Rab1 {[%clk 0:02:27]}  Kf8 {[%clk 0:02:26]} 19. Kd4 {[%clk 0:02:23]}  Ke7 {[%clk 0:02:24]} 20. a4 {[%clk 0:02:19]}  h6 {[%clk 0:02:14]} 21. g4 {[%clk 0:02:15]}  f6 {[%clk 0:02:00]} 22. Rhf1 {[%clk 0:02:11]}  Rf8 {[%clk 0:01:50]} 23. b3 {[%clk 0:02:03]}  Ra7 {[%clk 0:01:33]} 24. Kc5 {[%clk 0:01:56]}  Rb8 {[%clk 0:01:24]} 25. Bc2 {[%clk 0:01:55]}  Rh8 {[%clk 0:01:07]} 26. Bg6 {[%clk 0:01:21]}  Rb8 {[%clk 0:01:03]} 27. h4 {[%clk 0:01:13]}  Ra6 {[%clk 0:00:57]} 28. Bc2 {[%clk 0:01:08]}  Rf8 {[%clk 0:00:45]} 29. Rbe1 {[%clk 0:01:04]}  Rb8 {[%clk 0:00:35]} 30. Rg1 {[%clk 0:00:53]}  Rh8 {[%clk 0:00:32]} 31. Re3 {[%clk 0:00:46]}  Rf8 {[%clk 0:00:25]} 32. g5 {[%clk 0:00:42]}  fxe5 {[%clk 0:00:23]} 33. gxh6 {[%clk 0:00:39]}  gxh6 {[%clk 0:00:21]} 34. Rg7+ {[%clk 0:00:39]}  Rf7 {[%clk 0:00:22]} 35. Rxf7+ {[%clk 0:00:39]}  Kxf7 {[%clk 0:00:22]} 36. fxe5 {[%clk 0:00:38]}  Ke7 {[%clk 0:00:17]} 37. Rg3 {[%clk 0:00:37]}  Be8 {[%clk 0:00:13]} 38. Rg7+ {[%clk 0:00:37]}  Kf8 {[%clk 0:00:13]} 39. Rb7 {[%clk 0:00:35]}  Ra8 {[%clk 0:00:13]} 40. Rh7 {[%clk 0:00:28]}  Kg8 {[%clk 0:00:10]} 41. Rxh6 {[%clk 0:00:28]}  Bf7 {[%clk 0:00:10]} 42. Rf6 {[%clk 0:00:28]}  Kg7 {[%clk 0:00:10]} 43. h5 {[%clk 0:00:27]}  Bg8 {[%clk 0:00:09]} 44. h6+ {[%clk 0:00:27]}  Kh8 {[%clk 0:00:09]} 45. h7 {[%clk 0:00:28]}  Bxh7 {[%clk 0:00:08]} 46. Rh6 {[%clk 0:00:28]} 1-0


[Site "https://www.chess.com"]

[Event "Titled Tuesday Blitz April 18 Early 2023"]
[White "Skaric, Djuro"]
[Black "Dixit, Nikhil"]
[WhiteFideId "934569"]
[BlackFideId "5059534"]
[WhiteElo "2282"]
[BlackElo "2207"]
[Result "1-0"]
[Round "04"]
[TimeControl "180+2"]
[Date "2023.04.18"]
[WhiteClock "0:01:47"]
[BlackClock "0:01:03"]

1. g3 {[%clk 0:03:00]}  Nf6 {[%clk 0:02:49]} 2. Bg2 {[%clk 0:03:01]}  g6 {[%clk 0:02:49]} 3. d3 {[%clk 0:03:01]}  Bg7 {[%clk 0:02:49]} 4. e4 {[%clk 0:03:01]}  O-O {[%clk 0:02:49]} 5. Nc3 {[%clk 0:03:02]}  d6 {[%clk 0:02:49]} 6. h3 {[%clk 0:03:02]}  c5 {[%clk 0:02:49]} 7. f4 {[%clk 0:03:03]}  Nc6 {[%clk 0:02:49]} 8. Nf3 {[%clk 0:03:03]}  Rb8 {[%clk 0:02:49]} 9. a4 {[%clk 0:03:02]}  a6 {[%clk 0:02:47]} 10. g4 {[%clk 0:03:03]}  b5 {[%clk 0:02:47]} 11. axb5 {[%clk 0:03:03]}  axb5 {[%clk 0:02:48]} 12. O-O {[%clk 0:03:03]}  b4 {[%clk 0:02:40]} 13. Ne2 {[%clk 0:03:01]}  Ne8 {[%clk 0:02:29]} 14. Ng3 {[%clk 0:02:58]}  Nc7 {[%clk 0:02:27]} 15. Ng5 {[%clk 0:02:37]}  h6 {[%clk 0:02:15]} 16. Nf3 {[%clk 0:02:37]}  Nd4 {[%clk 0:02:13]} 17. Nh4 {[%clk 0:02:32]}  e5 {[%clk 0:02:07]} 18. Nf3 {[%clk 0:02:28]}  exf4 {[%clk 0:02:06]} 19. Bxf4 {[%clk 0:02:28]}  Nxf3+ {[%clk 0:02:05]} 20. Qxf3 {[%clk 0:02:27]}  Ne6 {[%clk 0:02:03]} 21. Be3 {[%clk 0:02:13]}  Bxb2 {[%clk 0:01:39]} 22. Bxh6 {[%clk 0:02:09]}  Bxa1 {[%clk 0:01:38]} 23. Rxa1 {[%clk 0:02:05]}  Nd4 {[%clk 0:01:34]} 24. Qf2 {[%clk 0:02:01]}  Re8 {[%clk 0:01:31]} 25. Rf1 {[%clk 0:01:59]}  Qe7 {[%clk 0:01:30]} 26. Bg5 {[%clk 0:01:57]}  Qe6 {[%clk 0:01:27]} 27. Bf6 {[%clk 0:01:56]}  Rb6 {[%clk 0:01:11]} 28. Qf4 {[%clk 0:01:54]}  d5 {[%clk 0:01:10]} 29. e5 {[%clk 0:01:54]}  Kh7 {[%clk 0:01:03]} 30. Qg5 {[%clk 0:01:47]} 1-0


[Site "https://www.chess.com"]